fUSD/lending_fUSD_20240104
["ID","MTS","AMOUNT","RATE_DAILY","PERIOD"]
[310122062,1704376267528,-500.0,0.0003315,2]
[310122063,1704376267539,-500.0,0.0003315,2]
[310122064,1704376267550,-500.0,0.0003315,2]
[310122065,1704376267560,-500.0,0.0003315,2]
[310122066,1704376267575,-500.0,0.0003315,2]
[310122067,1704376267585,-500.0,0.0003315,2]
[310122068,1704376267595,-500.0,0.0003315,2]
[310122069,1704376267606,-501.85863888,0.0003315,2]
[310122070,1704376267617,-268.33473878,0.0003315,2]
[310122071,1704376267630,-500.0,0.0003315,2]
[310122072,1704376267642,-630.19723436,0.0003315,2]
[310122073,1704376267652,-500.0,0.0003315,2]
[310122074,1704376267662,-732.57,0.0003315,2]
[310122075,1704376267673,-500.0,0.0003315,2]
[310122076,1704376267684,-500.0,0.0003315,2]
[310122077,1704376267697,-500.0,0.0003315,2]
[310122078,1704376267708,-500.0,0.0003315,2]
[310122079,1704376267719,-500.0,0.0003315,2]
[310122080,1704376267731,-500.0,0.0003315,2]
[310122081,1704376267742,-627.63407326,0.0003315,2]
[310122082,1704376267753,-500.0,0.0003315,2]
[310122083,1704376267763,-500.0,0.0003315,2]
[310122084,1704376267774,-544.92518816,0.0003315,2]
[310122085,1704376267785,-500.0,0.0003315,2]
[310122086,1704376267795,-276.87879532,0.0003315,2]
[310122087,1704376267807,-790.13,0.0003315,2]
[310122088,1704376267821,-500.0,0.0003315,2]
[310122089,1704376267832,-828.91,0.0003315,2]
[310122090,1704376267843,-517.66581722,0.0003315,2]
[310122091,1704376267855,-500.0,0.0003315,2]
[310122092,1704376267866,-500.0,0.0003315,2]
[310122093,1704376267877,-500.0,0.0003315,2]
[310122094,1704376267889,-500.0,0.0003315,2]
[310122095,1704376267901,-549.13559517,0.0003315,2]
[310122096,1704376267913,-500.0,0.0003315,2]
[310122097,1704376267924,-500.0,0.0003315,2]
[310122098,1704376267936,-500.0,0.0003315,2]
[310122099,1704376267946,-500.0,0.0003315,2]
[310122100,1704376267958,-526.57105995,0.0003315,2]
[310122101,1704376267969,-504.06558321,0.0003315,2]
[310122102,1704376267982,-293.67677769,0.0003315,2]
[310122103,1704376268010,-500.0,0.0003315,2]
[310122104,1704376268031,-525.90613714,0.0003315,2]
[310122105,1704376268041,-500.0,0.0003315,2]
[310122106,1704376268053,-500.0,0.0003315,2]
[310122107,1704376268064,-711.96,0.0003315,2]
[310122108,1704376268074,-500.0,0.0003315,2]
[310122109,1704376268083,-536.01,0.0003315,2]
[310122110,1704376268092,-500.0,0.0003315,2]
[310122111,1704376268102,-500.0,0.0003315,2]
[310122112,1704376268112,-500.0,0.0003315,2]
[310122113,1704376268122,-500.0,0.0003315,2]
[310122114,1704376268132,-500.0,0.0003315,2]
[310122115,1704376268142,-500.0,0.0003315,2]
[310122116,1704376268152,-500.0,0.0003315,2]
[310122117,1704376268162,-576.81249914,0.0003315,2]
[310122118,1704376268173,-425.23194443,0.0003315,2]
[310122119,1704376268183,-488.49171745,0.0003315,2]
[310122120,1704376268194,-500.0,0.0003315,2]
[310122121,1704376268204,-500.0,0.0003315,2]
[310122122,1704376268215,-371.90402901,0.0003315,2]
[310122123,1704376268389,-539.24029406,0.0003315,2]
[310122124,1704376268399,-500.0,0.0003315,2]
[310122125,1704376268410,-608.12,0.0003315,2]
[310122126,1704376268420,-500.0,0.0003315,2]
[310122127,1704376268430,-500.0,0.0003315,2]
[310122128,1704376268440,-4986.82,0.0003315,2]
[310122129,1704376268450,-866.33,0.0003315,2]
[310122130,1704376268460,-2106.08,0.0003315,2]
[310122131,1704376268471,-545.09435501,0.0003315,2]
[310122132,1704376268481,-500.0,0.0003315,2]
[310122133,1704376268491,-500.0,0.0003315,2]
[310122134,1704376268501,-500.0,0.0003315,2]
[310122135,1704376268511,-621.00677313,0.0003315,2]
[310122136,1704376268521,-500.0,0.0003315,2]
[310122137,1704376268531,-500.0,0.0003315,2]
[310122138,1704376268540,-500.0,0.0003315,2]
[310122139,1704376268550,-500.0,0.0003315,2]
[310122140,1704376268559,-500.0,0.0003315,2]
[310122141,1704376268571,-268.02109416,0.0003315,2]
[310122142,1704376268580,-500.0,0.0003315,2]
[310122143,1704376268590,-500.0,0.0003315,2]
[310122144,1704376268600,-500.0,0.0003315,2]
[310122145,1704376268609,-500.0,0.0003315,2]
[310122146,1704376268619,-500.0,0.0003315,2]
[310122147,1704376268629,-500.0,0.0003315,2]
[310122148,1704376268638,-500.0,0.0003315,2]
[310122149,1704376268647,-523.3137149,0.0003315,2]
[310122150,1704376268656,-500.0,0.0003315,2]
[310122151,1704376268665,-500.0,0.0003315,2]
[310122152,1704376268674,-2265.71,0.0003315,2]
[310122153,1704376268682,-500.0,0.0003315,2]
[310122154,1704376268693,-545.58009287,0.0003315,2]
[310122155,1704376268702,-500.0,0.0003315,2]
[310122156,1704376268712,-249.3623527,0.0003315,2]
[310122157,1704376268721,-500.0,0.0003315,2]
[310122158,1704376268730,-577.77287265,0.0003315,2]
[310122159,1704376268739,-500.0,0.0003315,2]
[310122160,1704376268749,-500.0,0.0003315,2]
[310122161,1704376268758,-500.0,0.0003315,2]
[310122162,1704376268768,-767.02,0.0003315,2]
[310122163,1704376268777,-500.0,0.0003315,2]
[310122164,1704376268788,-500.0,0.0003315,2]
[310122165,1704376268798,-500.0,0.0003315,2]
[310122166,1704376268807,-535.33970772,0.0003315,2]
[310122167,1704376268818,-500.0,0.0003315,2]
[310122168,1704376268827,-500.0,0.0003315,2]
[310122169,1704376268836,-500.0,0.0003315,2]
[310122170,1704376268844,-500.0,0.0003315,2]
[310122171,1704376268853,-500.0,0.0003315,2]
[310122172,1704376268863,-1141.21,0.0003315,2]
[310122173,1704376268873,-618.42582663,0.0003315,2]
[310122174,1704376268882,-500.0,0.0003315,2]
[310122175,1704376268892,-500.0,0.0003315,2]
[310122176,1704376268905,-589.71655169,0.0003315,2]
[310122177,1704376268915,-500.0,0.0003315,2]
[310122178,1704376268928,-500.0,0.0003315,2]
[310122179,1704376268940,-192.50786933,0.0003315,2]
[310122180,1704376268950,-500.0,0.0003315,2]
[310122181,1704376268973,-500.0,0.0003315,2]
[310122182,1704376268983,-500.0,0.0003315,2]
[310122183,1704376269001,-500.0,0.0003315,2]
[310122184,1704376269012,-500.0,0.0003315,2]
[310122185,1704376269025,-500.0,0.0003315,2]
[310122186,1704376269039,-500.0,0.0003315,2]
[310122187,1704376269050,-500.0,0.0003315,2]
[310122188,1704376269067,-500.0,0.0003315,2]
[310122189,1704376269077,-527.50660733,0.0003315,2]
[310122190,1704376269088,-855.1,0.0003315,2]
[310122191,1704376269100,-500.0,0.0003315,2]
[310122192,1704376269112,-500.0,0.0003315,2]
[310122193,1704376269132,-616.17,0.0003315,2]
[310122194,1704376269147,-500.0,0.0003315,2]
[310122195,1704376269158,-500.0,0.0003315,2]
[310122196,1704376269173,-500.0,0.0003315,2]
[310122197,1704376269184,-500.0,0.0003315,2]
[310122198,1704376269193,-500.0,0.0003315,2]
[310122199,1704376269213,-538.25838492,0.0003315,2]
[310122200,1704376269223,-500.0,0.0003315,2]
[310122201,1704376269233,-500.0,0.0003315,2]
[310122202,1704376269243,-500.0,0.0003315,2]
[310122203,1704376269252,-500.0,0.0003315,2]
[310122204,1704376269261,-500.0,0.0003315,2]
[310122205,1704376269271,-500.0,0.0003315,2]
[310122206,1704376269282,-500.0,0.0003315,2]
[310122207,1704376269292,-541.95110357,0.0003315,2]
[310122208,1704376269302,-500.0,0.0003315,2]
[310122209,1704376269311,-500.0,0.0003315,2]
[310122210,1704376269322,-500.0,0.0003315,2]
[310122211,1704376269331,-500.0,0.0003315,2]
[310122212,1704376269341,-500.0,0.0003315,2]
[310122213,1704376269350,-500.0,0.0003315,2]
[310122214,1704376269360,-582.56163723,0.0003315,2]
[310122215,1704376269370,-500.0,0.0003315,2]
[310122216,1704376269379,-530.20422736,0.0003315,2]
[310122217,1704376269389,-525.09786289,0.0003315,2]
[310122218,1704376269410,-500.0,0.0003315,2]
[310122219,1704376269427,-500.0,0.0003315,2]
[310122220,1704376269449,-500.0,0.0003315,2]
[310122221,1704376269469,-500.0,0.0003315,2]
[310122222,1704376269479,-500.0,0.0003315,2]
[310122223,1704376269489,-558.73653493,0.0003315,2]
[310122224,1704376269510,-500.0,0.0003315,2]
[310122225,1704376269520,-500.0,0.0003315,2]
[310122226,1704376269550,-1115.17,0.0003315,2]
[310122227,1704376269559,-500.0,0.0003315,2]
[310122228,1704376269571,-500.0,0.0003315,2]
[310122229,1704376269580,-500.0,0.0003315,2]
[310122230,1704376269589,-500.0,0.0003315,2]
[310122231,1704376269599,-500.0,0.0003315,2]
[310122232,1704376269628,-500.0,0.0003315,2]
[310122233,1704376269653,-500.0,0.0003315,2]
[310122234,1704376269663,-500.0,0.0003315,2]
[310122235,1704376269674,-467.97781459,0.0003315,2]
[310122236,1704376269684,-500.0,0.0003315,2]
[310122237,1704376269695,-203.91728726,0.0003315,2]
[310122238,1704376269705,-500.0,0.0003315,2]
[310122239,1704376269715,-500.0,0.0003315,2]
[310122240,1704376269725,-500.0,0.0003315,2]
[310122241,1704376269738,-3455.17,0.0003315,2]
[310122242,1704376269748,-500.0,0.0003315,2]
[310122243,1704376269759,-500.0,0.0003315,2]
[310122244,1704376269774,-500.0,0.0003315,2]
[310122245,1704376269784,-500.0,0.0003315,2]
[310122246,1704376269815,-500.0,0.0003315,2]
[310122247,1704376269825,-500.0,0.0003315,2]
[310122248,1704376269835,-500.0,0.0003315,2]
[310122249,1704376269844,-500.0,0.0003315,2]
[310122250,1704376269854,-510.30879925,0.0003315,2]
[310122251,1704376269864,-3050.39,0.0003315,2]
[310122252,1704376269894,-500.0,0.0003315,2]
[310122253,1704376269904,-1355.05,0.0003315,2]
[310122254,1704376269914,-926.09,0.0003315,2]
[310122255,1704376269924,-500.0,0.0003315,2]
[310122256,1704376269934,-500.0,0.0003315,2]
[310122257,1704376269945,-3332.3,0.0003315,2]
[310122258,1704376269955,-500.0,0.0003315,2]
[310122259,1704376269965,-500.0,0.0003315,2]
[310122260,1704376269975,-500.0,0.0003315,2]
[310122261,1704376269984,-500.0,0.0003315,2]
[310122262,1704376269995,-622.83,0.0003315,2]
[310122263,1704376270004,-542.94512546,0.0003315,2]
[310122264,1704376270013,-500.0,0.0003315,2]
[310122265,1704376270022,-457.97,0.0003315,2]
[310122266,1704376270031,-500.0,0.0003315,2]
[310122267,1704376270039,-2331.02,0.0003315,2]
[310122268,1704376270047,-500.0,0.0003315,2]
[310122269,1704376270056,-660.0,0.0003315,2]
[310122270,1704376270063,-500.0,0.0003315,2]
[310122271,1704376270072,-500.0,0.0003315,2]
[310122272,1704376270080,-500.0,0.0003315,2]
[310122273,1704376270088,-500.0,0.0003315,2]
[310122274,1704376270098,-500.0,0.0003315,2]
[310122275,1704376270107,-500.0,0.0003315,2]
[310122276,1704376270117,-500.0,0.0003315,2]
[310122277,1704376270126,-500.0,0.0003315,2]
[310122278,1704376270136,-500.0,0.0003315,2]
[310122279,1704376270145,-500.0,0.0003315,2]
[310122280,1704376270155,-500.0,0.0003315,2]
[310122281,1704376270164,-661.88,0.0003315,2]
[310122282,1704376270173,-165.91207016,0.0003315,2]
[310122283,1704376270183,-300.0,0.0003315,2]
[310122284,1704376270193,-546.15242413,0.0003315,2]
[310122285,1704376270202,-196.25399799,0.0003315,2]
[310122286,1704376270212,-500.0,0.0003315,2]
[310122287,1704376270221,-500.0,0.0003315,2]
[310122288,1704376270231,-638.11846958,0.0003315,2]
[310122289,1704376270240,-500.0,0.0003315,2]
[310122290,1704376270250,-548.42643735,0.0003315,2]
[310122291,1704376270259,-2608.4,0.0003315,2]
[310122292,1704376270269,-500.0,0.0003315,2]
[310122293,1704376270279,-500.0,0.0003315,2]
[310122294,1704376270288,-1494.03,0.0003315,2]
[310122295,1704376270298,-500.0,0.0003315,2]
[310122296,1704376270307,-1463.43,0.0003315,2]
[310122297,1704376270317,-500.0,0.0003315,2]
[310122298,1704376270326,-500.19649193,0.0003315,2]
[310122299,1704376270336,-500.0,0.0003315,2]
[310122300,1704376270345,-1043.9,0.0003315,2]
[310122301,1704376270355,-500.0,0.0003315,2]
[310122302,1704376270364,-400.0,0.0003315,2]
[310122303,1704376270374,-598.95,0.0003315,2]
[310122304,1704376270384,-1024.71,0.0003315,2]
[310122305,1704376270393,-500.0,0.0003315,2]
[310122306,1704376270403,-500.0,0.0003315,2]
[310122307,1704376270413,-560.21967931,0.0003315,2]
[310122308,1704376270422,-500.0,0.0003315,2]
[310122309,1704376270432,-567.35982962,0.0003315,2]
[310122310,1704376270442,-500.0,0.0003315,2]
[310122311,1704376270452,-500.0,0.0003315,2]
[310122312,1704376270462,-500.0,0.0003315,2]
[310122313,1704376270472,-609.43,0.0003315,2]
[310122314,1704376270482,-1321.13,0.0003315,2]
[310122315,1704376270491,-279.41329224,0.0003315,2]
[310122316,1704376270501,-1809.81,0.0003315,2]
[310122317,1704376270511,-500.0,0.0003315,2]
[310122318,1704376270521,-741.24,0.0003315,2]
[310122319,1704376270531,-500.0,0.0003315,2]
[310122320,1704376270541,-500.0,0.0003315,2]
[310122321,1704376270551,-955.44,0.0003315,2]
[310122322,1704376270560,-1179.95,0.0003315,2]
[310122323,1704376270572,-568.4,0.0003315,2]
[310122324,1704376270581,-500.0,0.0003315,2]
[310122325,1704376270590,-512.86739174,0.0003315,2]
[310122326,1704376270600,-824.39,0.0003315,2]
[310122327,1704376270610,-500.0,0.0003315,2]
[310122328,1704376270620,-896.64,0.0003315,2]
[310122329,1704376270630,-177.30407594,0.0003315,2]
[310122330,1704376270640,-500.0,0.0003315,2]
[310122331,1704376270649,-500.0,0.0003315,2]
[310122332,1704376270658,-500.0,0.0003315,2]
[310122333,1704376270668,-745.04,0.0003315,2]
[310122334,1704376270677,-500.0,0.0003315,2]
[310122335,1704376270687,-673.43,0.0003315,2]
[310122336,1704376270696,-780.4,0.0003315,2]
[310122337,1704376270705,-500.0,0.0003315,2]
[310122338,1704376270715,-537.65,0.0003315,2]
[310122339,1704376270725,-500.0,0.0003315,2]
[310122340,1704376270734,-500.0,0.0003315,2]
[310122341,1704376270743,-1236.0,0.0003315,2]
[310122342,1704376270753,-500.0,0.0003315,2]
[310122343,1704376270763,-642.93,0.0003315,2]
[310122344,1704376270772,-837.04,0.0003315,2]
[310122345,1704376270781,-500.0,0.0003315,2]
[310122346,1704376270791,-531.97786282,0.0003315,2]
[310122347,1704376270801,-500.0,0.0003315,2]
[310122348,1704376270811,-1050.16,0.0003315,2]
[310122349,1704376270824,-500.0,0.0003315,2]
[310122350,1704376270834,-500.0,0.0003315,2]
[310122351,1704376270843,-500.0,0.0003315,2]
[310122352,1704376270853,-162.71360333,0.0003315,2]
[310122353,1704376270862,-500.0,0.0003315,2]
[310122354,1704376270871,-500.0,0.0003315,2]
[310122355,1704376270881,-500.0,0.0003315,2]
[310122356,1704376270890,-500.0,0.0003315,2]
[310122357,1704376270900,-969.09,0.0003315,2]
[310122358,1704376270909,-525.22248617,0.0003315,2]
[310122359,1704376270918,-500.0,0.0003315,2]
[310122360,1704376270927,-532.7,0.0003315,2]
[310122361,1704376270936,-500.0,0.0003315,2]
[310122362,1704376270945,-626.59,0.0003315,2]
[310122363,1704376270955,-500.0,0.0003315,2]
[310122364,1704376270964,-500.0,0.0003315,2]
[310122365,1704376270973,-500.0,0.0003315,2]
[310122366,1704376270982,-500.0,0.0003315,2]
[310122367,1704376270991,-500.0,0.0003315,2]
[310122368,1704376271000,-500.0,0.0003315,2]
[310122369,1704376271010,-500.0,0.0003315,5]
[310122370,1704376271019,-517.15,0.0003315,2]
[310122371,1704376271029,-500.0,0.0003315,2]
[310122372,1704376271038,-976.99,0.0003315,2]
[310122373,1704376271048,-833.15,0.0003315,2]
[310122374,1704376271057,-500.0,0.0003315,2]
[310122375,1704376271069,-517.44,0.0003315,2]
[310122376,1704376271079,-500.0,0.0003315,2]
[310122377,1704376271089,-500.0,0.0003315,2]
[310122378,1704376271098,-500.0,0.0003315,2]
[310122379,1704376271108,-257.28531642,0.0003315,2]
[310122380,1704376271117,-588.23,0.0003315,2]
[310122381,1704376271127,-2663.85,0.0003315,2]
[310122382,1704376271137,-524.48,0.0003315,2]
[310122383,1704376271147,-762.82,0.0003315,2]
[310122384,1704376271157,-3366.34,0.0003315,2]
[310122385,1704376271166,-516.2,0.0003315,2]
[310122386,1704376271177,-500.0,0.0003315,2]
[310122387,1704376271187,-7010.51,0.0003315,2]
[310122388,1704376271198,-500.0,0.0003315,2]
[310122389,1704376271208,-500.0,0.0003315,2]
[310122390,1704376271219,-519.57770705,0.0003315,2]
[310122391,1704376271228,-449.4172446,0.0003315,2]
[310122392,1704376271238,-500.0,0.0003315,2]
[310122393,1704376271248,-500.0,0.0003315,2]
[310122394,1704376271257,-500.0,0.0003315,2]
[310122395,1704376271267,-500.0,0.0003315,2]
[310122396,1704376271276,-864.34,0.0003315,2]
[310122397,1704376271286,-500.0,0.0003315,2]
[310122398,1704376271295,-500.0,0.0003315,2]
[310122399,1704376271305,-500.0,0.0003315,2]
[310122400,1704376271314,-157.1,0.00033155,2]
[310122401,1704376271326,-151.69064531,0.00033182,2]
[310122402,1704376271338,-234.40104,0.00033198,2]
[310122403,1704376271348,-500.0,0.00033233,2]
[310122404,1704376271359,-8815.96673082,0.00033279,5]
[310122405,1704376271370,-153.84,0.00033287,2]
[310122406,1704376271381,-234.40104,0.00033298,2]
[310122407,1704376271391,-4695.0,0.000333,2]
[310122408,1704376271401,-157.53,0.000333,2]
[310122409,1704376271410,-157.53,0.000333,2]
[310122410,1704376271420,-152.5,0.00033318,2]
[310122411,1704376271430,-320.2,0.00033318,2]
[310122412,1704376271439,-234.40104,0.00033398,2]
[310122413,1704376271449,-501.0,0.000334,22]
[310122414,1704376271461,-152.0,0.000334,2]
[310122415,1704376271471,-500.0,0.00033424,2]
[310122416,1704376271481,-500.0,0.00033424,2]
[310122417,1704376271491,-500.0,0.00033424,15]
[310122418,1704376271500,-500.0,0.00033424,2]
[310122419,1704376271509,-500.0,0.00033424,2]
[310122420,1704376271518,-500.0,0.00033424,2]
[310122421,1704376271682,-500.0,0.00033424,2]
[310122422,1704376271694,-507.48012491,0.00033424,2]
[310122423,1704376271704,-500.0,0.00033424,2]
[310122424,1704376271713,-500.0,0.00033424,2]
[310122425,1704376271723,-500.0,0.00033424,2]
[310122426,1704376271733,-510.58657717,0.00033424,2]
[310122427,1704376271743,-500.0,0.00033424,2]
[310122428,1704376271752,-500.0,0.00033424,2]
[310122429,1704376271762,-463.77411571,0.00033424,2]
[310122430,1704376271771,-203.69742712,0.00033424,2]
[310122431,1704376271781,-500.0,0.00033424,2]
[310122432,1704376271790,-565.94251677,0.00033424,2]
[310122433,1704376271799,-500.0,0.00033424,2]
[310122434,1704376271809,-500.0,0.00033424,2]
[310122435,1704376271820,-417.93911336,0.00033424,2]
[310122436,1704376271831,-500.0,0.00033424,2]
[310122437,1704376271840,-500.0,0.00033424,2]
[310122438,1704376271849,-550.1,0.00033424,2]
[310122439,1704376271858,-500.0,0.00033424,2]
[310122440,1704376271867,-378.14990775,0.00033424,2]
[310122441,1704376271877,-214.08437689,0.00033424,2]
[310122442,1704376271887,-500.0,0.00033424,2]
[310122443,1704376271897,-500.0,0.00033424,2]
[310122444,1704376271907,-500.0,0.00033424,2]
[310122445,1704376271917,-500.0,0.00033424,2]
[310122446,1704376271926,-500.0,0.00033424,2]
[310122447,1704376271936,-500.0,0.00033424,2]
[310122448,1704376271945,-500.0,0.00033424,2]
[310122449,1704376271954,-500.0,0.00033424,2]
[310122450,1704376271963,-308.81260358,0.00033424,2]
[310122451,1704376271973,-500.0,0.00033424,2]
[310122452,1704376271982,-500.0,0.00033424,2]
[310122453,1704376271991,-500.0,0.00033424,2]
[310122454,1704376272000,-500.0,0.00033424,2]
[310122455,1704376272010,-500.0,0.00033424,2]
[310122456,1704376272019,-500.0,0.00033424,2]
[310122457,1704376272029,-500.0,0.00033424,2]
[310122458,1704376272038,-500.0,0.00033424,2]
[310122459,1704376272047,-500.0,0.00033424,2]
[310122460,1704376272057,-500.0,0.00033424,2]
[310122461,1704376272067,-500.0,0.00033424,2]
[310122462,1704376272077,-500.0,0.00033424,2]
[310122463,1704376272087,-500.0,0.00033424,2]
[310122464,1704376272097,-500.0,0.00033424,2]
[310122465,1704376272109,-500.0,0.00033424,2]
[310122466,1704376272120,-688.97,0.00033424,2]
[310122467,1704376272131,-500.0,0.00033424,2]
[310122468,1704376272142,-195.31933421,0.00033424,2]
[310122469,1704376272153,-500.0,0.00033424,2]
[310122470,1704376272164,-500.0,0.00033424,2]
[310122471,1704376272175,-500.0,0.00033424,2]
[310122472,1704376272186,-500.0,0.00033424,2]
[310122473,1704376272199,-500.0,0.00033424,2]
[310122474,1704376272209,-500.0,0.00033424,2]
[310122475,1704376272221,-500.0,0.00033424,2]
[310122476,1704376272231,-755.75,0.00033424,2]
[310122477,1704376272241,-539.67576449,0.00033424,2]
[310122478,1704376272252,-500.0,0.00033424,2]
[310122479,1704376272261,-561.346137,0.00033424,2]
[310122480,1704376272271,-500.0,0.00033424,2]
[310122481,1704376272281,-500.0,0.00033424,2]
[310122482,1704376272290,-500.0,0.00033424,2]
[310122483,1704376272300,-1506.91,0.00033424,2]
[310122484,1704376272310,-524.27068299,0.00033424,2]
[310122485,1704376272320,-500.0,0.00033424,2]
[310122486,1704376272331,-500.0,0.00033424,2]
[310122487,1704376272341,-500.0,0.00033424,2]
[310122488,1704376272352,-500.0,0.00033424,2]
[310122489,1704376272361,-500.0,0.00033424,2]
[310122490,1704376272371,-500.0,0.00033424,2]
[310122491,1704376272381,-500.0,0.00033424,2]
[310122492,1704376272390,-500.0,0.00033424,2]
[310122493,1704376272399,-500.0,0.00033424,2]
[310122494,1704376272409,-500.0,0.00033424,2]
[310122495,1704376272419,-526.8511535,0.00033424,2]
[310122496,1704376272428,-872.68,0.00033424,2]
[310122497,1704376272439,-500.0,0.00033424,2]
[310122498,1704376272448,-1266.42,0.00033424,2]
[310122499,1704376272458,-500.0,0.00033424,2]
[310122500,1704376272467,-500.0,0.00033424,2]
[310122501,1704376272476,-500.0,0.00033424,2]
[310122502,1704376272486,-500.0,0.00033424,2]
[310122503,1704376272495,-500.0,0.00033424,2]
[310122504,1704376272505,-500.0,0.00033424,2]
[310122505,1704376272514,-516.24373756,0.00033424,2]
[310122506,1704376272524,-500.0,0.00033424,2]
[310122507,1704376272533,-525.26683267,0.00033424,2]
[310122508,1704376272542,-500.0,0.00033424,2]
[310122509,1704376272552,-500.0,0.00033424,2]
[310122510,1704376272562,-500.0,0.00033424,2]
[310122511,1704376272575,-500.0,0.00033424,2]
[310122512,1704376272586,-500.0,0.00033424,2]
[310122513,1704376272595,-500.0,0.00033424,2]
[310122514,1704376272604,-570.47158456,0.00033424,2]
[310122515,1704376272614,-500.0,0.00033424,2]
[310122516,1704376272623,-500.0,0.00033424,2]
[310122517,1704376272632,-1122.66,0.00033424,2]
[310122518,1704376272642,-500.0,0.00033424,2]
[310122519,1704376272651,-558.09659924,0.00033424,2]
[310122520,1704376272660,-500.0,0.00033424,2]
[310122521,1704376272669,-502.11238884,0.00033424,2]
[310122522,1704376272679,-500.0,0.00033424,2]
[310122523,1704376272688,-211.11046883,0.00033424,2]
[310122524,1704376272698,-500.0,0.00033424,2]
[310122525,1704376272707,-500.0,0.00033424,2]
[310122526,1704376272717,-500.0,0.00033424,2]
[310122527,1704376272726,-500.0,0.00033424,2]
[310122528,1704376272735,-500.0,0.00033424,2]
[310122529,1704376272745,-500.0,0.00033424,2]
[310122530,1704376272754,-500.0,0.00033424,2]
[310122531,1704376272764,-683.22,0.00033424,2]
[310122532,1704376272773,-500.0,0.00033424,2]
[310122533,1704376272782,-543.77476871,0.00033424,2]
[310122534,1704376272791,-500.0,0.00033424,2]
[310122535,1704376272801,-569.03055155,0.00033424,2]
[310122536,1704376272810,-500.0,0.00033424,2]
[310122537,1704376272821,-500.0,0.00033424,2]
[310122538,1704376272831,-521.47224569,0.00033424,2]
[310122539,1704376272842,-573.15372797,0.00033424,2]
[310122540,1704376272851,-500.0,0.00033424,2]
[310122541,1704376272860,-524.17524732,0.00033424,2]
[310122542,1704376272870,-500.0,0.00033424,2]
[310122543,1704376272879,-500.0,0.00033424,2]
[310122544,1704376272888,-559.7,0.00033424,2]
[310122545,1704376272897,-500.0,0.00033424,2]
[310122546,1704376272906,-500.0,0.00033424,2]
[310122547,1704376272916,-500.0,0.00033424,2]
[310122548,1704376272925,-500.0,0.00033424,2]
[310122549,1704376272934,-500.0,0.00033424,2]
[310122550,1704376272944,-500.0,0.00033424,2]
[310122551,1704376272954,-500.0,0.00033424,2]
[310122552,1704376272963,-500.0,0.00033424,2]
[310122553,1704376272972,-500.0,0.00033424,2]
[310122554,1704376272981,-1749.13,0.00033424,2]
[310122555,1704376272990,-500.0,0.00033424,2]
[310122556,1704376273000,-347.1021122,0.00033424,2]
[310122557,1704376273010,-500.0,0.00033424,2]
[310122558,1704376273019,-206.89553045,0.00033424,2]
[310122559,1704376273028,-528.07392587,0.00033424,2]
[310122560,1704376273037,-500.0,0.00033424,2]
[310122561,1704376273046,-500.0,0.00033424,2]